Cogmind - Beta 16 @@@ ROGUE MODE // 2025.10.29 @ 22:03:29 Player: Oozyorphan Result: Destroyed by as-37105 with Assembled Rifle Performance ------------- Evolutions (0) 0 Regions Visited (4) 800 Robots Destroyed (5) 25 Value Destroyed (108) 108 Prototype IDs (1) 20 Alien Tech Used (0) 0 Bonus (25) 25 TOTAL SCORE: 978 Bonus ------- Follower Combat Kills 25 Cogmind --------- Core Integrity 0/250 Matter 295/300 Energy 99/100 System Corruption 0% Temperature Cool (0) Movement Core (100) Ox1 Location -9/Mines Parts ------- > --- POWER (1) -------- (None) > --- PROPULSION (2) --- (None) > --- UTILITY (2) ------ Small Storage Unit > --- WEAPON (2) ------- (None) > --- INVENTORY (8) ---- Medium Battery (150) Terrain Scanner Targeting Computer Peak State ------------ > --- POWER ------------ Ion Engine > --- PROPULSION ------- Aluminum Leg Aluminum Leg > --- UTILITY ---------- Small Storage Unit Experimental Sensor Array > --- WEAPON ----------- Medium Laser Assault Rifle > --- INVENTORY -------- Light Ion Engine Light Ion Engine Aluminum Leg Aluminum Leg Medium Battery Terrain Scanner Targeting Computer [Rating: 15] Favorites ----------- Power Ion Engine Engine Ion Engine Propulsion Aluminum Leg Leg Aluminum Leg Utility Small Storage Unit Device Experimental Sensor Array Storage Small Storage Unit Weapon Medium Laser Energy Gun Medium Laser Ballistic Gun Assault Rifle Build | -11 -10 -10 -10 -9 ------- Run | Yrd Mat Min Exi Min Slots Evolved . | . . . . . Power . | . . . . . Propulsion . | . . . . . Utility . | . . . . . Weapon . | . . . . . Parts Attached 14 | 6 2 2 . 4 Power 3 | 1 . . . 2 Engine 3 | 1 . . . 2 Core . | . . . . . Reactor . | . . . . . Propulsion 4 | 2 . . . 2 Treads . | . . . . . Leg 4 | 2 . . . 2 Wheel . | . . . . . Hover . | . . . . . Flight . | . . . . . Utility 4 | 1 2 1 . . Device 2 | . 1 1 . . Storage 2 | 1 1 . . . Processor . | . . . . . Hackware . | . . . . . Protection . | . . . . . Artifact . | . . . . . Weapon 3 | 2 . 1 . . Energy Gun 2 | 2 . . . . Energy Cannon . | . . . . . Ballistic Gun 1 | . . 1 . . Ballistic Cannon . | . . . . . Launcher . | . . . . . Special Weapon . | . . . . . Impact Weapon . | . . . . . Slashing Weapon . | . . . . . Piercing Weapon . | . . . . . Special Melee Weapon . | . . . . . Unidentified Prototypes 1 | . . 1 . . Parts Lost 11 | . . 1 . 10 Power 3 | . . . . 3 Propulsion 4 | . . . . 4 Utility 1 | . . . . 1 Weapon 3 | . . 1 . 2 Highest Loss Streak 10 | . . 1 . 10 To Critical Strikes . | . . . . . Average Backups 5 | 1 3 6 7 6 Power 1 | . 1 1 2 1 Propulsion 1 | . . 2 2 1 Utility 2 | . . 2 3 3 Weapon . | . 1 . . . Tool/Special . | . . . . . Unused Backups 1 | . . . . 1 Power . | . . . . . Propulsion . | . . . . . Utility 1 | . . . . 1 Weapon . | . . . . . Tool/Special . | . . . . . Average Slot Usage (%) 97 | . 97 99 100 83 Engine 13 | . 14 14 14 11 Leg 27 | . 28 28 28 21 Device 12 | . 6 14 14 14 Storage 14 | . 18 14 14 14 Energy Gun 16 | . 28 14 14 11 Ballistic Gun 10 | . . 13 14 8 Peak Build Rating 15 | 6 7 15 15 15 Average Rating 12 | 3 6 13 15 13 On Entrance 8 | . 6 7 15 15 Avg Prop Armor Cover (%) . | . . . . . Naked Turns . | . . . . . Heaviest Build 16 | 14 16 15 15 15 Greatest Support 20 | 20 20 20 20 20 Greatest Overweight (x) 1 | 1 . . . 1 Average Overweight (x) . | . . . . . Largest Inventory Capacity 8 | 8 8 8 8 8 Average Capacity 7 | 6 8 8 8 8 Most Carried 8 | 3 6 8 8 8 Average Carried 6 | 1 3 7 8 6 Final Capacity 8 | 8 8 8 8 8 Final Carried 8 | 2 6 8 8 3 Class Distribution -------------------- 100% | Mutant Dominant Class ---------------- Mutant | -10/Materials Mutant | -10/Mines Mutant | -10/Exiles Mutant | -9/Mines Resources | -11 -10 -10 -10 -9 ----------- Run | Yrd Mat Min Exi Min Matter Collected 271 | 242 6 23 . . Remotely . | . . . . . Salvage Created 111 | . 69 42 . . Parts 10 | . 4 6 . . Haulers Intercepted . | . . . . . Recyclers Shooed . | . . . . . Parts Field Recycled . | . . . . . Retrieved Matter . | . . . . . Parts Self-Destructed . | . . . . . Prevented . | . . . . . Parts Restored . | . . . . . Kills | -11 -10 -10 -10 -9 ------- Run | Yrd Mat Min Exi Min Combat Hostiles Destroyed 5 | . 2 3 . . Guns 5 | . 2 3 . . Classes Destroyed 2 | . 1 1 . . Swarmer 3 | . . 3 . . Grunt 2 | . 2 . . . Best Kill Streak 3 | . 2 3 . . Combat Bots Only 3 | . 2 3 . . Max Kills in Single Turn 1 | . 1 1 . . Gunslinging . | . . . . . Exploded . | . . . . . Melee . | . . . . . Uniques/NPCs Destroyed . | . . . . . Combat | -11 -10 -10 -10 -9 -------- Run | Yrd Mat Min Exi Min Hostile Shots Fired 56 | . 9 11 . 36 Missed 10 | . . 2 . 8 Hits 46 | . 9 9 . 28 Melee 4 | . . . . 4 Projectile 42 | . 9 9 . 24 AOE 14 | . . . . 14 Damage Taken 1063 | . 97 66 . 900 Core 259 | . 10 13 . 236 Absorbed by Shields . | . . . . . Core Remaining (%) 100 | 100 . . . . Volleys Fired 15 | . 6 6 . 3 Largest 2 | . 2 2 . 2 Hottest 90 | . 90 90 . 70 Shots Fired 25 | . 12 8 . 5 Gun 25 | . 12 8 . 5 Cannon . | . . . . . Launcher . | . . . . . Special . | . . . . . Kinetic 3 | . . 1 . 2 Thermal 15 | . 6 6 . 3 Explosive . | . . . . . Electromagnetic 7 | . 6 1 . . Robot Hit Streak 6 | . 5 5 . 6 Robot Miss Streak 4 | . 4 1 . 2 Penetration Max . | . . . . . Secondary Targets 1 | . 1 . . . Max Gunslinging Chain 1 | . 1 . . . Shots Hit Robots 15 | . 7 5 . 3 Core Hits 8 | . 4 3 . 1 Critical Kills . | . . . . . Critical Parts Destroyed . | . . . . . Critical Strikes . | . . . . . Melee Attacks . | . . . . . Impact . | . . . . . Slashing . | . . . . . Piercing . | . . . . . Sneak Attacks . | . . . . . Combat Hostiles . | . . . . . Follow-up Attacks . | . . . . . Damage Inflicted 256 | . 144 63 . 49 Guns 205 | . 104 63 . 38 Cannons . | . . . . . Explosions 25 | . 25 . . . Melee . | . . . . . Ramming 26 | . 15 . . 11 Kinetic 12 | . . . . 12 Thermal 153 | . 64 63 . 26 Explosive . | . . . . . Electromagnetic 65 | . 65 . . . Impact . | . . . . . Slashing . | . . . . . Piercing . | . . . . . Highest Corruption . | . . . . . Average Corruption . | . . . . . Corruption Purged . | . . . . . Corruption Blocked . | . . . . . Overload Shots . | . . . . . Overflow Damage . | . . . . . Projectiles . | . . . . . Explosions . | . . . . . Melee . | . . . . . Knockbacks . | . . . . . Impact . | . . . . . Kinetic . | . . . . . Secondary . | . . . . . Self-Inflicted Damage . | . . . . . Shots . | . . . . . Rammed . | . . . . . Targets Rammed 3 | . 2 . . 1 Kicked 3 | . 2 . . 1 Crushed . | . . . . . Highest Temperature 234 | . 234 70 . 10 Average Temperature 79 | . 120 34 . 5 Received Heat Transfer 54 | . 54 . . . Siege Activations . | . . . . . Martial Activations . | . . . . . Shielding Activations . | . . . . . Robots Disrupted . | . . . . . Combat Hostiles . | . . . . . Robots Corrupted . | . . . . . Combat Hostiles . | . . . . . Parts Fried . | . . . . . Impact Corruptions . | . . . . . Robots Melted . | . . . . . Combat Hostiles . | . . . . . Parts Melted . | . . . . . Heat Transferred 420 | . 161 185 . 74 Parts Sabotaged . | . . . . . Parts Stolen . | . . . . . Parts Stripped . | . . . . . Power Chain Reactions 1 | . 1 . . . Alert | -11 -10 -10 -10 -9 ------- Run | Yrd Mat Min Exi Min Maximum Alert Level . | . . . . . Low Security (%) 100 | 100 100 100 . 100 Level 1 . | . . . . . Level 2 . | . . . . . Level 3 . | . . . . . Level 4 . | . . . . . Level 5 . | . . . . . High Security . | . . . . . Max Security . | . . . . . Peak Influence 74 | . 68 74 . . Initial 14 | . . 14 . . Average 9 | . 11 10 . . Influence Increases 160 | . 68 92 . . Destroy 0b10 Robot/C 120 | . 40 80 . . Destroy Leader 20 | . 10 10 . . Allied During Kill 2 | . . 2 . . Disable Machine 15 | . 15 . . . Destroy Structure 3 | . 3 . . . Influence Decreases 160 | . 30 116 14 . Entered New Map 38 | . . 24 14 . Time Decay 112 | . 30 82 . . Lost Part 10 | . . 10 . . Squads Dispatched 3 | . 3 . . . Investigation 2 | . 2 . . . Extermination . | . . . . . Reinforcement 1 | . 1 . . . Assault . | . . . . . Garrison . | . . . . . Intercept . | . . . . . Searches Triggered . | . . . . . Construction Impeded . | . . . . . Haulers Reinforced . | . . . . . Active Scanning Responses . | . . . . . Cargo Convoy Interrupts . | . . . . . Stealth | -11 -10 -10 -10 -9 --------- Run | Yrd Mat Min Exi Min Distress Signals . | . . . . . Communications Jammed . | . . . . . Distress Signals . | . . . . . Times Spotted 13 | . 3 3 . 7 Peak Tracking Total 5 | . 2 3 . 5 Tactical Retreats . | . . . . . Traps | -11 -10 -10 -10 -9 ------- Run | Yrd Mat Min Exi Min Traps Triggered . | . . . . . Indirectly . | . . . . . Trap Hack Attempts . | . . . . . Triggered . | . . . . . Disarmed . | . . . . . Reprogrammed . | . . . . . Reused . | . . . . . Traps Extracted . | . . . . . Installed . | . . . . . Triggered . | . . . . . Most Traps Carried 1 | . . 1 1 1 Machines | -11 -10 -10 -10 -9 ---------- Run | Yrd Mat Min Exi Min Machines Disabled 1 | . 1 . . . Max in Single Turn 1 | . 1 . . . Machines Repaired . | . . . . . Machines Dismantled . | . . . . . Machines Sabotaged . | . . . . . Overloaded Fab Kills . | . . . . . Hacking | -11 -10 -10 -10 -9 --------- Run | Yrd Mat Min Exi Min Machines Accessed 2 | . 2 . . . Terminals 1 | . 1 . . . Fabricators . | . . . . . Repair Stations . | . . . . . Recycling Units 1 | . 1 . . . Scanalyzers . | . . . . . Garrison Access . | . . . . . Total Hacks 7 | . 7 . . . Successful 4 | . 4 . . . Failed 3 | . 3 . . . Catastrophic 1 | . 1 . . . Database Lockouts . | . . . . . Manual . | . . . . . Terminals 3 | . 3 . . . Fabricators . | . . . . . Repair Stations . | . . . . . Recycling Units 4 | . 4 . . . Scanalyzers . | . . . . . Garrison Access . | . . . . . Terminal Hacks 1 | . 1 . . . Record 1 | . 1 . . . Fabricator Hacks . | . . . . . Repair Station Hacks . | . . . . . Recycling Unit Hacks 3 | . 3 . . . Process 1 | . 1 . . . Report Inventory 1 | . 1 . . . Retrieve Matter 1 | . 1 . . . Scanalyzer . | . . . . . Garrison Access Hacks . | . . . . . Unauthorized Hacks . | . . . . . Terminals . | . . . . . Fabricators . | . . . . . Repair Stations . | . . . . . Recycling Units . | . . . . . Scanalyzers . | . . . . . Garrison Access . | . . . . . Data Cores Recovered . | . . . . . Used . | . . . . . Hacking Detections 2 | . 2 . . . Full Trace Events 2 | . 2 . . . Feedback Events . | . . . . . Feedback Blocked . | . . . . . Robot Schematics Acquired . | . . . . . Robots Built . | . . . . . Authchips . | . . . . . Time . | . . . . . Total Robot Build Rating . | . . . . . Part Schematics Acquired . | . . . . . Parts Built . | . . . . . Authchips . | . . . . . Time . | . . . . . Total Part Build Rating . | . . . . . Part Studies Acquired . | . . . . . Parts Repaired . | . . . . . Time . | . . . . . Parts Recycled . | . . . . . Recycled Matter 89 | . 89 . . . Retrieved Matter 89 | . 89 . . . Retrieved Components . | . . . . . Parts Scanalyzed . | . . . . . Part Schematics Acquired . | . . . . . Parts Damaged . | . . . . . Bothacking | -11 -10 -10 -10 -9 ------------ Run | Yrd Mat Min Exi Min Used RIF Installer . | . . . . . Robots Hacked . | . . . . . Non-combat . | . . . . . Combat . | . . . . . Robot Hacks Applied . | . . . . . Relay Couplers Released . | . . . . . Fabnet Peak Effective % . | . . . . . Robots Rewired . | . . . . . Allies Hacked . | . . . . . Hacks Repelled . | . . . . . Allies | -11 -10 -10 -10 -9 -------- Run | Yrd Mat Min Exi Min Total Allies 2 | . . 2 . . Largest Group 2 | . . 2 2 . Highest-Rated Group 47 | . . 47 47 . Highest-Rated Ally 31 | . . 31 31 . Total Orders . | . . . . . Ally Attacks 1 | . . 1 . . Total Damage 22 | . . 22 . . Kills 1 | . . 1 . . Allies Corrupted . | . . . . . Allies Melted . | . . . . . Intel | -11 -10 -10 -10 -9 ------- Run | Yrd Mat Min Exi Min Active Infowar (turns) 1175 | . 124 579 371 101 Sensors 935 | . . 463 371 101 Terrain 240 | . 124 116 . . Robot Analysis Total . | . . . . . Derelict Logs Recovered 2 | . . 2 . . Drone Launches . | . . . . . Drone Recoveries . | . . . . . Exploration | -11 -10 -10 -10 -9 ------------- Run | Yrd Mat Min Exi Min Turns Passed 1357 | 58 246 580 371 102 Spaces Moved 1070 | 43 182 462 310 73 Core 23 | 14 . . . 9 Treads . | . . . . . Legs 1047 | 29 182 462 310 64 Wheels . | . . . . . Hover . | . . . . . Flight . | . . . . . Fastest Speed 50 | 50 120 120 120 100 Average Speed 119 | 104 120 120 120 121 Slowest Speed 190 | 120 120 120 120 190 Overloaded Moves . | . . . . . Propulsion Burnouts . | . . . . . Robots Hopped . | . . . . . Potential Cave-ins . | . . . . . Cave-ins Triggered . | . . . . . Exploration Rate (%) 42 | 4 41 74 76 18 Regions Visited 4 Branch Regions 3 Pre-discovered Areas 1 | . . 1 . . Known Exits Taken . | . . . . . Unknown Exits Taken 4 | 1 1 1 1 . Scrap Searched . | . . . . . Spaces Dug . | . . . . . Terrain Destroyed 3 | . 3 . . . Melee . | . . . . . Projectile . | . . . . . AOE 3 | . 3 . . . Terrain Rammed . | . . . . . Walls Destroyed . | . . . . . Machines Disabled . | . . . . . Actions | -11 -10 -10 -10 -9 --------- Run | Yrd Mat Min Exi Min Total 1124 | 56 197 480 309 82 Wait 7 | . . 7 . . Move 1066 | 42 181 461 309 73 Hop . | . . . . . Pick Up 16 | 8 5 3 . . Fast Attach . | . . . . . Attach 14 | 6 2 2 . 4 Detach 2 | . 1 1 . . Swap . | . . . . . Drop 1 | . . . . 1 Fire 15 | . 6 6 . 3 Melee . | . . . . . Ram . | . . . . . Kick 3 | . 2 . . 1 Crush . | . . . . . Escape Stasis . | . . . . . Rewire . | . . . . . Trap . | . . . . . Miscellaneous . | . . . . . Route ------- -11/Scrapyard -10/Materials -10/Mines -10/Exiles (discovered 2 exits: [*Min x2]) -9/Mines History --------- Turn | Location | Event 2 | -11/Scrapyard | Met Revision 17 12 | -11/Scrapyard | Discovered new exit (range 14) 59 | -11/Scrapyard | Entered Materials 60 | -10/Materials | Met a group of wandering Federalists 290 | -10/Materials | Discovered new exit (range 9) 305 | -10/Materials | Entered Mines 316 | -10/Mines | Build established: Mutant 370 | -10/Mines | Met a Derelict bent on vengeance 416 | -10/Mines | Found a damaged Exp. Sensor Array with a note attached 420 | -10/Mines | Found Prototype Device 422 | -10/Mines | Identified Exp. Sensor Array 708 | -10/Mines | Found a hidden stash of uninstalled traps 726 | -10/Mines | Learned location of Zion (-7) 880 | -10/Mines | Deemed a non-threat by the Exiles lab entrance 880 | -10/Mines | Discovered new exit (range 5) 885 | -10/Mines | Entered Exiles 885 | -10/Exiles | Accompanied by 2 allies 906 | -10/Exiles | Discovered new exit (range 15) 915 | -10/Exiles | Led the pair of lost Derelicts to a safe place 949 | -10/Exiles | Met 8R-AWN 969 | -10/Exiles | Met EX-HEX 1014 | -10/Exiles | Met EX-DEC 1036 | -10/Exiles | Visited The Gauntlet 1243 | -10/Exiles | Discovered new exit (range 14) 1256 | -10/Exiles | Entered Mines 1291 | -9/Mines | Assembled infested the area 1323 | -9/Mines | Core integrity fell below 50% 1325 | -9/Mines | Core integrity fell below 20% 1358 | -9/Mines | Destroyed by as-37105 with Assembled Rifle Last Messages --------------- U-05 Engineer lays Concrete. Lgt. Ion Engine destroyed. Knocked back. U-05 Engineer lays Concrete. Med. Laser destroyed. Aluminum Leg destroyed. U-05 Engineer lays Concrete. U-05 Engineer builds a Wall. as-59902 sneak attacks. U-05 Engineer system corrupted by crushing effect. U-05 Engineer system terminally corrupted. as-30102 sneak attacks. U-05 Engineer destroyed. The unstable cave ceiling collapses. K-01 Serf collects debris. Lgt. Ion Engine destroyed. Aluminum Leg destroyed. as-32592 sneak attacks. U-05 Engineer destroyed. Exp. Sensor Array destroyed. Map ----- +----------------------------------------------------+ | | | | | | | | | | | | | | | ?????????????????????????????????????????????????? | | ?????????????????????????????????????????????????? | | ????????????????????????????????????????#????????? | | ???????????????????????????????????????? ####????? | | ???????????????????????????????????????? ##???? | | ???????????????????????????????????????? #???? | | ???????????????????????????????????????? ##?? | | ???????????????????????????????????????? ##? | | ?????????????????????????????#####?????? """ #? | | ?????????????????????????????? #??????# """ #? | | ??????????????????????????????# #?????## """ #? | | ?????????????????????????????## #????## #? | | ????????????????????????????## ###### #? | | ???????????????????????????## ##? | | ??????????????????????????## ####?? | | ?????????????????????????## ######## ##????? | | ???????????????????????### a ##?????# ##?????? | | ??????????????????????## a ####### #??????? | | ????????????????????### @ a ????? | | ???????????????????## # |% ???? | | ??????????????????## !=!=############# ????? | | ?????????????###### % !%###??????????????????? | | ?????????????# ###????????????????????? | | ?????????????# ### a ##?????????????????????? | | ?????????????????# a #?????????????????????? | | ?????????????????# ###% #????????????????????? | | ???????????????# ##????????????????????? | | ???????????????# #?????????????????????? | | ???????????? ##?????????????????????? | | ???????????##### ##??????????????????????? | | ???????????????# ## ##???????????????????????? | | ???????????????# """ ?# #????????????????????????? | | ???????????????# """ ## #????????????????????????? | | ???????????????# """ # #????????????????????????? | | ???????????????#??##?#&##????????????????????????? | | ?????????????????????# #?????????????????????????? | | ?????????????????????# #?????????????????????????? | | ?????????????????????# #?????????????????????????? | | ?????????????????????# #?????????????????????????? | | ?????????????????????# #?????????????????????????? | | ?????????????????????# #?????????????????????????? | | ????????????????????? ?????????????????????????? | | ????????????????????? ?????????????????????????? | +----------------------------------------------------+ Best States ------------- Heat Dissipation 25 Energy Generation 10 Energy Capacity 400 Matter Stores 300 Matter Capacity 300 Sight Range 16 Robot Scan Range 20 Terrain Scan Range 14 Terrain Scan Density 10 Evasion (%) 55 Item Schematics ----------------- None Robot Schematics ------------------ None Fabricated ------------ Nothing Repaired ---------- Nothing Studied --------- None Alien Tech Used ----------------- None Achievements -------------- You Again Challenges ------------ None Game ------ Seed VampiricMomentumCoupler Manual? 0 Play Time 00:09:33 Cumulative 5.0 hours Start 2025.10.26 @ 12:26:13 End 2025.10.29 @ 22:03:29 Sessions 3 Manual Loads 0 Difficulty Rogue Special Mode None Game No. 19 Rogue 19 Adventurer 0 Explorer 0 Win Type - Total 0 Types 0/0/0/0/0/0/0/0/0/0 Lore% 2 Gallery% 13 Achievement% 9 Wizard Run 0 Options --------- Layout 1 ASCII 0 Keyboard 0 Movement Mouse Keybinds 0 Fullscreen 1 Font 16/SmallcapsGlow Map View 50x40 Zoom Use 0% Tactical HUD 0 Map Filters NONE Filters NONE Steam SD RUN: 57299502-25fc-4486-9643-54c04bffabca